bitfinex-derivatives/quotes_ETHF0:USTF0_20251213
["timestamp","ask_amount","ask_price","bid_price","bid_amount"]
[1765666953590,13.21013529,3112.0,3111.9,4.45e-05]
[1765666954083,7.21013529,3112.0,3111.9,4.45e-05]
[1765666954283,13.21013529,3112.0,3111.9,4.45e-05]
[1765666954785,7.21013529,3112.0,3111.9,4.45e-05]
[1765666955183,3.3012,3111.0,3110.9,0.16069]
[1765666955391,4.50523529,3111.0,3110.9,0.16069]
[1765666955779,1.3085,3110.9,3110.8,5.6225]
[1765666955987,3.2078,3111.4,3111.3,2.4147]
[1765666956186,3.2078,3111.4,3111.3,2.41792798]
[1765666956988,1.20403529,3111.5,3111.3,2.41792798]
[1765666957189,2.51253529,3111.5,3111.4,2.4147]
[1765666957492,4.993,3111.6,3111.5,3.1546]
[1765666957696,3.2078,3111.9,3111.8,2.4147]
[1765666960187,4.5163,3111.9,3111.8,2.4147]
[1765666960389,5.72033529,3111.9,3111.8,2.4147]
[1765666963994,6.92683529,3111.9,3111.8,2.4147]
[1765666964199,2.515,3111.7,3111.6,1.38675]
[1765666964508,3.71903529,3111.7,3111.6,2.57535]
[1765666965897,2.515,3111.7,3111.6,2.57535]
[1765666966402,1.3085,3111.7,3111.6,2.57535]
[1765666966600,2.515,3111.7,3111.6,2.57535]
[1765666977416,2.515,3111.7,3111.6,1.38675]
[1765666978316,2.515,3111.7,3111.6,2.52005]
[1765666980317,1.3085,3111.7,3111.6,2.52005]
[1765666980520,3.2078,3111.8,3111.7,2.48965]
[1765666981317,4.3627,3111.8,3111.7,2.48965]
[1765666981722,3.2078,3111.8,3111.7,2.48965]
[1765666982126,4.3627,3111.8,3111.7,2.48965]
[1765666982325,3.2078,3111.8,3111.7,2.48965]
[1765666982722,3.2078,3112.2,3112.1,0.16063]
[1765666982928,3.2078,3112.8,3112.7,2.329]
[1765666983221,2.2541,3113.5,3113.4,2.329]
[1765666983420,1.1549,3113.5,3113.4,2.329]
[1765666983720,1.0992,3112.8,3112.7,3.2078]
[1765666983915,2.2541,3113.0,3112.9,2.329]
[1765666984114,0.00482362,3113.1,3113.0,3.15618]
[1765666984315,1.15900886,3113.5,3113.4,2.48956]
[1765666984820,1.06007482,3114.3,3114.2,1.1333]
[1765666984821,1.1549,3114.3,3114.2,1.1333]
[1765666985016,2.2541,3114.3,3114.2,2.329]
[1765666985416,3.31417482,3114.3,3114.2,2.329]
[1765666985720,2.9412,3113.5,3113.4,3.2078]
[1765666985923,4.00127482,3113.5,3113.4,3.2078]
[1765666986123,4.00127482,3113.5,3113.4,3.21125467]
[1765666986424,4.00127482,3113.5,3113.4,4.40695467]
[1765666986719,2.2541,3113.2,3113.1,0.16058]
[1765666986916,2.2541,3113.2,3113.0,3.2078]
[1765666986917,2.2541,3113.1,3113.0,3.2078]
[1765666987218,1.1549,3113.1,3113.0,6.36398]
[1765666987420,17.8322,3113.5,3113.4,2.329]
[1765666987622,17.1451,3113.5,3113.4,2.329]
[1765666987815,2.2541,3114.0,3113.9,2.329]
[1765666988217,2.9412,3113.5,3113.4,0.00416624]
[1765666988616,4.57441323,3113.5,3113.4,0.00416624]
[1765666989425,2.2541,3113.1,3113.0,3.2078]
[1765666990224,2.2541,3113.1,3113.0,3.21176243]
[1765666991926,2.9278,3112.5,3112.4,3.21262362]
[1765666992823,2.9278,3112.5,3112.4,3.21619396]
[1765666993123,2.25892362,3112.8,3112.7,2.329]
[1765666993320,2.25892362,3112.8,3112.7,1.1957]
[1765666993526,0.00482362,3112.8,3112.7,2.329]
[1765666995023,0.00482362,3112.8,3112.7,2.4896]
[1765666996624,5.4619,3113.6,3113.5,1.1957]
[1765666996919,5.4619,3113.6,3113.5,2.329]
[1765666998719,2.2541,3113.3,3113.2,3.2078]
[1765666998926,0.6871,3113.0,3112.7,3.2078]
[1765666999125,2.2541,3112.8,3112.7,4.4035]
[1765666999326,2.2541,3112.8,3112.7,5.5368]
[1765667001427,2.2541,3112.8,3112.7,3.2078]
[1765667003227,17.1851,3113.1,3113.0,1.1957]
[1765667003428,1.1549,3112.6,3112.5,2.9956]
[1765667003925,1.1549,3113.0,3112.9,2.329]
[1765667004132,14.931,3113.1,3113.0,2.9956]
[1765667004426,2.2541,3112.9,3112.8,3.2078]
[1765667004725,2.9412,3112.5,3112.4,3.21619396]
[1765667004929,2.9412,3112.5,3112.4,5.54519396]
[1765667005429,2.2541,3112.5,3112.4,5.54519396]
[1765667005919,2.5593,3113.0,3112.9,2.6226]
[1765667006121,3.3224,3113.0,3112.9,1.3399]
[1765667006932,3.3224,3113.0,3112.9,2.6226]
[1765667007131,3.3224,3113.0,3112.9,1.3399]
[1765667007430,1.2937,3112.6,3112.5,3.59221]
[1765667009035,2.5593,3112.6,3112.5,1.50051]
[1765667009328,2.5593,3112.6,3112.5,0.16061]
[1765667009526,3.4028,3112.5,3112.4,3.21619396]
[1765667010037,2.6069,3112.5,3112.4,5.79639396]
[1765667010425,3.4028,3112.5,3112.4,5.79639396]
[1765667010834,3.2078,3112.9,3112.4,5.79639396]
[1765667010835,1.2762,3112.6,3112.5,3.32]
[1765667011028,2.6069,3112.6,3112.5,3.32]
[1765667011224,3.2078,3112.9,3112.5,3.32]
[1765667011531,5.8147,3112.9,3112.8,1.289]
[1765667017134,2.6069,3112.5,3112.4,4.50519396]
[1765667017337,3.4028,3112.5,3112.4,3.21619396]
[1765667021836,3.4028,3112.5,3112.4,4.50519396]
[1765667027846,4.46264317,3112.5,3112.4,4.50519396]
[1765667029649,4.46264317,3112.5,3112.4,1.29739396]
[1765667031341,4.46264317,3112.5,3112.4,0.00839396]
[1765667031541,3.2078,3112.5,3112.4,2.5802]
[1765667031741,1.05984317,3112.9,3112.8,2.5802]
[1765667031742,5.8147,3112.9,3112.8,2.5802]
[1765667031945,6.87454317,3112.9,3112.8,2.5802]
[1765667032145,5.54384317,3112.9,3112.8,2.5802]
[1765667032446,6.87454317,3112.9,3112.8,2.58399483]
[1765667032646,6.87454317,3112.9,3112.8,0.00379483]
[1765667032843,6.87454317,3112.9,3112.8,1.29279483]
[1765667037346,6.87454317,3112.9,3112.8,0.00379483]
[1765667037553,7.93386324,3112.9,3112.8,0.00379483]
[1765667040460,5.54358162,3112.9,3112.8,2.77669483]
[1765667040755,7.89826324,3112.9,3112.8,0.00379483]
[1765667041058,7.89826324,3112.9,3112.8,1.40109483]
[1765667041350,7.89826324,3112.9,3112.8,0.00379483]
[1765667041558,3.2078,3113.3,3112.8,0.00379483]
[1765667041751,2.6427,3113.1,3113.0,1.3973]
[1765667041957,3.70228162,3113.1,3113.0,1.3973]
[1765667042158,1.05958162,3113.1,3113.0,3.554]
[1765667042349,6.91008162,3113.3,3113.2,2.7729]
[1765667042551,5.61498162,3113.3,3113.2,2.7729]
[1765667043253,3.2078,3113.3,3113.2,2.7729]
[1765667043452,4.5554,3113.3,3113.2,2.7729]
[1765667044158,5.61498162,3113.3,3113.2,2.7729]
[1765667044454,6.91008162,3113.3,3113.2,2.7729]
[1765667045556,5.61498162,3113.3,3113.2,2.7729]
[1765667047362,4.26738162,3113.3,3113.2,2.7729]
[1765667047956,5.61498162,3113.3,3113.2,2.7729]
[1765667048156,2.40718162,3113.3,3113.2,2.7729]
[1765667048655,3.4388,3113.0,3112.9,1.55789]
[1765667048959,3.4388,3113.0,3112.8,0.00379483]
[1765667048960,2.6427,3112.9,3112.8,0.00379483]
[1765667051866,5.8505,3112.9,3112.8,0.00379483]
[1765667056465,2.6427,3112.6,3112.5,0.00482362]
[1765667056674,3.70228162,3112.6,3112.5,0.00482362]
[1765667057566,3.70228162,3112.6,3112.5,0.00792193]
[1765667059664,2.6427,3111.9,3111.8,4.76574]
[1765667059862,3.18113878,3111.9,3111.8,4.6051]
[1765667060765,3.18373179,3111.9,3111.8,3.21034414]
[1765667062670,3.18373179,3111.9,3111.8,0.00254414]
[1765667064164,1.88863179,3111.9,3111.8,2.67574414]
[1765667064470,3.18483179,3111.9,3111.8,2.67574414]
[1765667066565,3.18483179,3111.9,3111.8,1.39984414]
[1765667067467,6.39263179,3111.9,3111.8,0.00254414]
[1765667068667,2.3874,3111.6,3111.5,0.00482362]
[1765667068867,2.3874,3111.2,3111.1,3.2078]
[1765667069169,4.50818778,3111.2,3111.1,3.2078]
[1765667069573,3.44779389,3111.2,3111.1,3.2078]
[1765667069774,4.50818778,3111.2,3111.1,3.21070501]
[1765667069972,3.44779389,3111.2,3111.1,3.21070501]
[1765667071972,3.44779389,3111.2,3111.1,0.00290501]
[1765667072874,4.50818778,3111.2,3111.1,0.00290501]
[1765667073271,2.3874,3110.6,3110.5,3.1827]
[1765667073471,3.44838058,3110.6,3110.5,3.1827]
[1765667073983,1.1788,3110.3,3110.2,4.3971]
[1765667074177,4.50936116,3110.3,3110.2,3.21123378]
[1765667074971,1.1788,3110.3,3110.2,5.61283378]
[1765667075178,0.00482362,3110.6,3110.5,3.1791]
[1765667075380,3.4532042,3110.6,3110.5,3.1791]
[1765667075680,2.3874,3110.3,3110.2,4.40053378]
[1765667075867,2.3874,3110.3,3110.2,3.21123378]
[1765667076177,2.3874,3110.3,3110.2,0.00343378]
[1765667076785,2.3874,3109.8,3109.7,5.6094]
[1765667077077,1.06098058,3109.8,3109.7,5.6094]
[1765667077669,1.06098058,3109.8,3109.7,5.61249211]
[1765667079579,3.2078,3110.3,3110.2,2.4016]
[1765667079772,4.26878058,3110.3,3110.2,2.4016]
[1765667083787,4.26878058,3110.3,3110.2,2.56233]
[1765667085684,3.2078,3110.3,3110.2,2.56233]
[1765667086687,2.23978058,3110.4,3110.3,2.56232]
[1765667100211,1.06098058,3110.4,3110.3,2.56232]
[1765667100602,2.2057042,3110.6,3110.5,3.08031]
[1765667101006,3.3351042,3110.6,3110.5,3.08031]
[1765667101898,0.00482362,3110.6,3110.5,4.14129058]
[1765667102098,3.2078,3111.3,3111.2,2.43058]
[1765667102711,4.3477,3111.3,3111.2,2.43058]
[1765667103111,5.4771,3111.3,3111.2,2.43058]
[1765667104612,2.2693,3111.3,3111.2,2.43058]
[1765667107509,2.2693,3111.3,3111.2,0.16068]
[1765667108914,3.33000863,3111.3,3111.2,0.16068]
[1765667110116,3.33000863,3110.6,3110.5,2.9196]
[1765667110313,2.20060863,3110.6,3110.5,2.9196]
[1765667110710,3.33000863,3110.6,3110.5,3.08031]
[1765667110917,3.33000863,3110.6,3110.5,1.33661]
[1765667111415,3.33000863,3110.6,3110.5,0.16071]
[1765667111916,3.33000863,3110.6,3110.5,1.33661]
[1765667114119,1.1399,3110.6,3110.5,3.08031]
[1765667114321,3.2078,3111.1,3111.0,2.9196]
[1765667114618,1.06070863,3112.2,3111.4,2.2699]
[1765667114619,4.3477,3111.5,3111.4,2.2699]
[1765667115425,5.4771,3111.5,3111.4,2.2699]
[1765667115923,4.3477,3111.5,3111.4,2.2699]
[1765667116117,5.4771,3111.5,3111.4,2.2699]
[1765667117722,5.4771,3111.5,3111.4,1.1759]
[1765667120522,5.4771,3111.5,3111.4,2.43057]
[1765667120727,3.2078,3111.5,3111.4,2.43057]
[1765667121724,4.3477,3111.5,3111.4,2.43057]
[1765667121919,3.2078,3111.5,3111.4,2.43057]
[1765667122119,1.14472362,3111.6,3111.5,2.9196]
[1765667123122,1.14472362,3111.6,3111.5,3.08026]
[1765667124220,0.00482362,3111.6,3111.5,3.08026]
[1765667127230,2.04142362,3111.6,3111.5,3.08026]
[1765667128028,2.04142362,3111.6,3111.5,1.33656]
[1765667128325,2.04142362,3111.6,3111.5,2.35926]
[1765667128524,2.04142362,3111.6,3111.5,3.00586]
[1765667130926,2.04142362,3111.6,3111.5,0.16066]
[1765667131433,2.04142362,3111.6,3111.5,1.15136]
[1765667132226,0.00482362,3111.6,3111.5,2.82066]
[1765667139541,2.362e-05,3111.6,3111.5,2.82066]
[1765667140844,2.362e-05,3111.6,3111.5,3.88099326]
[1765667141042,3.2078,3112.4,3112.3,0.16062]
[1765667141239,3.2078,3112.4,3112.3,2.17402]
[1765667142240,5.24755324,3112.4,3112.3,2.17630043]
[1765667142435,5.24755324,3112.4,3112.3,0.16290043]
[1765667144746,2.03975324,3112.4,3112.3,0.16290043]
[1765667147952,2.03975324,3112.4,3112.3,1.15360043]
[1765667148145,2.03975324,3112.4,3112.3,0.16290043]
[1765667148448,0.00315324,3112.4,3112.3,2.17630043]
[1765667151439,0.00315324,3112.4,3112.3,5.38410043]
[1765667153060,0.00482362,3112.7,3112.6,2.174]
[1765667153251,0.00482362,3112.7,3112.6,3.2337138]
[1765667153952,0.00897155,3112.7,3112.6,3.2337138]
[1765667155863,6.1076138,3113.5,3113.4,1.811]
[1765667156057,6.1076138,3113.5,3113.4,1.07146]
[1765667156863,6.11161793,3113.5,3113.4,1.07146]
[1765667157256,5.05190413,3113.5,3113.4,1.07146]
[1765667157455,5.05190413,3113.5,3113.4,1.97156]
[1765667158062,5.05190413,3113.5,3113.4,1.07146]
[1765667158449,5.05190413,3113.5,3113.4,0.16056]
[1765667160756,5.58190413,3113.5,3113.4,0.16056]
[1765667161164,5.05190413,3113.5,3113.4,1.07146]
[1765667161360,1.84410413,3113.5,3113.4,1.97156]
[1765667161566,0.00400413,3113.5,3113.4,1.97156]
[1765667162155,0.93550413,3113.5,3113.4,1.97156]
[1765667162355,2.37240413,3113.5,3113.4,0.16056]
[1765667162555,3.43211793,3113.5,3113.4,0.16056]
[1765667162864,2.37240413,3113.5,3113.4,0.16056]
[1765667164269,8.37240413,3113.5,3113.4,0.16056]
[1765667165060,2.37240413,3113.5,3113.4,0.16056]
[1765667165357,8.37240413,3113.5,3113.4,0.16056]
[1765667165562,2.37240413,3113.5,3113.4,0.16056]
[1765667165860,1.84410413,3113.5,3113.4,1.97156]
[1765667166061,0.00400413,3113.5,3113.4,1.97156]
[1765667166366,0.93550413,3113.5,3113.4,1.97156]
[1765667166667,1.84410413,3113.5,3113.4,1.97156]
[1765667170966,0.93550413,3113.5,3113.4,1.97156]
[1765667171674,1.84410413,3113.5,3113.4,1.97156]
[1765667172273,0.93550413,3113.5,3113.4,1.97156]
[1765667172875,1.84410413,3113.5,3113.4,1.97156]
[1765667174270,0.00400413,3113.5,3113.4,1.97156]
[1765667174872,0.93550413,3113.5,3113.4,1.97156]
[1765667175277,1.84410413,3113.5,3113.4,1.97156]
[1765667175978,0.93550413,3113.5,3113.4,1.97156]
[1765667181783,1.84410413,3113.5,3113.4,1.97156]
[1765667181974,2.27130413,3113.5,3113.4,0.16056]
[1765667183582,1.84410413,3113.5,3113.4,1.86816]
[1765667183974,1.84410413,3113.5,3113.4,1.02376]
[1765667184175,0.00400413,3113.5,3113.4,1.86816]
[1765667185779,0.88260413,3113.5,3113.4,1.86816]
[1765667186178,1.73630413,3113.5,3113.4,1.86816]
[1765667186379,2.14590413,3113.5,3113.4,0.16056]
[1765667186780,1.73630413,3113.5,3113.4,1.02896]
[1765667187485,1.73630413,3113.5,3113.4,0.16056]
[1765667189788,2.11100413,3113.5,3113.4,0.16056]
[1765667190092,3.16996607,3113.5,3113.4,0.16056]
[1765667191386,1.713,3113.3,3113.2,3.2078]
[1765667191592,1.713,3112.9,3112.8,3.36839]
[1765667191890,2.77196194,3112.9,3112.8,3.36839]
[1765667192282,2.77196194,3112.9,3112.8,0.16059]
[1765667192789,0.8593,3113.1,3113.0,2.2017]
[1765667192985,2.77196194,3113.3,3113.2,1.7076]
[1765667193191,1.713,3113.3,3113.2,1.7076]
[1765667194595,1.713,3113.1,3113.0,0.16058]
[1765667194788,2.77196194,3113.1,3113.0,0.16058]
[1765667194990,2.77196194,3113.1,3113.0,1.02898]
[1765667197584,2.77196194,3113.1,3113.0,2.36228]
[1765667197987,1.713,3113.1,3113.0,2.36228]
[1765667198895,1.713,3113.1,3113.0,0.16058]
[1765667199195,1.713,3113.1,3113.0,1.02898]
[1765667203099,1.713,3113.1,3113.0,0.16058]
[1765667209100,3.2078,3113.2,3113.0,0.16058]
[1765667209101,3.2078,3113.2,3113.1,1.7076]
[1765667209299,4.9208,3113.2,3113.1,1.7076]
[1765667209504,1.713,3113.1,3113.0,1.52308]
[1765667209706,1.713,3113.1,3113.0,0.16058]
[1765667211100,3.2078,3113.2,3112.3,1.87050043]
[1765667211101,1.713,3112.4,3112.3,1.87050043]
[1765667212204,1.713,3112.4,3112.3,0.16290043]
[1765667218107,2.77282555,3112.4,3112.3,0.16290043]
[1765667220909,1.713,3112.4,3112.3,1.73650043]
[1765667221711,3.2078,3112.7,3112.6,1.5736]
[1765667222108,1.05982555,3113.0,3112.9,0.7959]
[1765667222109,2.54662555,3113.0,3112.9,0.7959]
[1765667223300,2.54662555,3113.0,3112.9,1.5736]
[1765667223612,2.54662555,3113.3,3113.2,1.5736]
[1765667223812,2.54662555,3113.3,3113.2,0.7959]
[1765667224115,1.4868,3113.1,3113.0,2.0221]
[1765667224514,2.54662555,3113.1,3113.0,2.0221]
[1765667224715,1.82542555,3113.1,3113.0,2.0221]
[1765667224909,2.54662555,3113.3,3113.2,1.5736]
[1765667225114,1.82542555,3113.3,3113.2,1.5736]
[1765667225615,0.7656,3113.3,3113.2,1.5736]
[1765667225805,8.29842968,3113.5,3113.4,0.7959]
[1765667226007,8.29842968,3113.5,3113.0,4.71612555]
[1765667226207,8.29842968,3113.5,3113.4,0.7959]
[1765667226409,1.4868,3113.3,3113.2,0.95647]
[1765667226614,2.54662555,3113.3,3113.2,0.16057]
[1765667226816,2.54662555,3113.3,3113.2,0.95647]
[1765667227512,2.54662555,3113.3,3113.2,0.16057]
[1765667227908,2.54662555,3113.3,3113.2,0.95647]
[1765667229514,2.54662555,3113.3,3113.2,0.16057]
[1765667231014,1.4868,3113.3,3113.2,0.16057]
[1765667231313,2.54662555,3113.3,3113.2,0.16057]
[1765667231914,1.4868,3112.7,3112.6,4.7814]
[1765667232113,2.54662555,3112.7,3112.6,4.7814]
[1765667232516,2.54662555,3112.7,3112.6,4.0037]
[1765667233408,2.54662555,3112.7,3112.6,4.7814]
[1765667234220,1.4868,3112.7,3112.6,4.942]
[1765667234415,1.4868,3112.9,3112.8,1.5736]
[1765667234617,1.82542555,3113.1,3113.0,2.0221]
[1765667234815,0.7656,3113.1,3113.0,2.0221]
[1765667235410,0.7656,3113.3,3113.2,1.5736]
[1765667235615,8.29842968,3113.5,3113.4,1.5736]
[1765667235816,8.29842968,3113.5,3113.0,1.50832555]
[1765667236217,0.7656,3113.1,3113.0,2.0221]
[1765667236420,0.7656,3113.1,3113.0,2.18268]
[1765667236923,2.54662555,3113.3,3113.2,1.5736]
[1765667240422,5.75180413,3113.5,3113.4,1.5736]
[1765667240621,2.54400413,3113.5,3113.4,1.5736]
[1765667240932,3.30960413,3113.5,3113.4,1.5736]
[1765667241225,4.03080413,3113.5,3113.4,1.5736]
[1765667241617,4.03080413,3113.5,3113.4,1.73416]
[1765667242319,2.54400413,3113.5,3113.4,1.73416]
[1765667243019,3.30960413,3113.5,3113.4,1.73416]
[1765667243225,2.54400413,3113.5,3113.4,1.73416]
[1765667243617,3.30960413,3113.5,3113.4,1.73416]
[1765667246534,4.00940413,3113.5,3113.4,1.73416]
[1765667247121,5.06825649,3113.5,3113.4,0.16056]
[1765667247819,5.06825649,3113.5,3113.4,1.69286]
[1765667248926,5.06825649,3113.5,3113.4,0.92156]
[1765667250128,5.06825649,3113.5,3113.4,1.69286]
[1765667252125,5.44295649,3113.5,3113.4,0.16056]
[1765667252531,1.5262,3113.1,3113.0,3.2078]
[1765667252830,9.97755649,3113.5,3113.4,1.5323]
[1765667252831,0.00400413,3113.5,3113.4,1.5323]
[1765667253033,1.53020413,3113.5,3113.4,1.69286]
[1765667266357,1.74440413,3113.5,3113.4,0.16056]
[1765667267656,0.76930413,3113.5,3113.4,1.69286]
[1765667267856,0.00400413,3113.5,3113.4,1.69286]
[1765667268159,1.53020413,3113.5,3113.4,1.69286]
[1765667271065,1.53020413,3113.5,3113.4,0.16056]
[1765667272265,1.74440413,3113.5,3113.4,0.16056]
[1765667279665,4.95220413,3113.5,3113.4,0.16056]
[1765667282873,1.74440413,3113.5,3113.4,0.16056]
[1765667283073,4.95220413,3113.5,3113.4,0.16056]
[1765667287976,4.95220413,3113.5,3112.7,3.3684]
[1765667288280,1.05887977,3113.2,3112.7,3.3684]
[1765667289179,0.7465,3112.9,3112.8,1.64089]
[1765667291275,2.57506597,3113.2,3113.1,0.748]
[1765667292477,2.57506597,3113.2,3113.1,1.4803]
[1765667293680,2.57506597,3113.2,3113.1,0.748]
[1765667298284,1.5158,3113.1,3113.0,1.1654]
[1765667298486,1.5158,3113.1,3113.0,1.8977]
[1765667298878,1.5158,3113.1,3113.0,1.1654]
[1765667299079,3.21180413,3113.5,3113.4,0.748]
[1765667299381,4.72760413,3113.5,3113.4,0.748]
[1765667299578,0.7465,3113.1,3113.0,2.05828]
[1765667299783,1.5158,3113.1,3113.0,2.05828]
[1765667303889,2.57498209,3113.1,3113.0,2.05828]
[1765667307795,1.4762,3112.8,3112.7,3.2078]
[1765667307996,2.53538209,3112.8,3112.7,3.2078]
[1765667310391,2.53538209,3112.8,3112.7,3.9741]
[1765667310698,2.53538209,3112.8,3112.7,4.6707]
[1765667312293,1.05918209,3112.8,3112.5,0.16061]
[1765667312497,2.53538209,3112.6,3112.5,0.16061]
[1765667323502,1.05918209,3112.6,3112.5,2.04901]
[1765667323703,1.80548209,3112.6,3112.5,2.04901]
[1765667323905,2.53538209,3112.6,3112.5,2.04901]
[1765667324102,2.53538209,3112.8,3112.7,1.4629]
[1765667324403,1.80548209,3112.8,3112.7,1.4629]
[1765667324900,1.4762,3112.6,3112.5,0.16061]
[1765667325209,2.53549852,3112.6,3112.5,0.16061]
[1765667325500,1.05929852,3112.6,3112.5,2.04901]
[1765667326004,1.80559852,3112.6,3112.5,2.04901]
[1765667326404,2.53549852,3112.6,3112.5,2.04901]
[1765667327099,0.7463,3112.6,3112.5,2.04901]
[1765667327403,1.05929852,3112.7,3112.6,1.4629]
[1765667327605,1.80559852,3112.7,3112.6,1.4629]
[1765667328200,1.05929852,3112.7,3112.6,1.4629]
[1765667328701,2.53549852,3112.7,3112.6,1.4629]
[1765667330607,2.53549852,3112.7,3112.6,0.7663]
[1765667331106,2.53549852,3112.7,3112.6,1.4629]
[1765667333103,1.80559852,3112.7,3112.6,1.4629]
[1765667334114,2.53549852,3112.7,3112.6,1.4629]
[1765667334510,1.80559852,3112.7,3112.6,1.4629]
[1765667335008,1.4762,3112.4,3112.3,0.00228043]
[1765667335199,2.53549852,3112.4,3112.3,0.00228043]
[1765667335407,3.59479704,3112.4,3112.3,0.00228043]
[1765667337802,2.53549852,3112.4,3112.3,0.00228043]
[1765667340611,1.4721,3111.7,3111.6,0.16065]
[1765667340806,1.4721,3111.5,3111.4,3.2078]
[1765667341006,2.53139852,3111.5,3111.4,3.2078]
[1765667341212,4.6799,3112.1,3112.0,1.9744]
[1765667341409,4.6799,3112.1,3111.5,0.4575]
[1765667341604,2.53139852,3112.0,3111.9,1.5169]
[1765667343016,3.97572362,3112.1,3112.0,1.9744]
[1765667343216,5.74402214,3112.1,3112.0,1.9744]
[1765667343816,5.74402214,3112.1,3112.0,1.2236]
[1765667344016,1.4721,3111.9,3111.8,1.67754]
[1765667344217,2.53139852,3111.9,3111.8,1.67754]
[1765667345018,1.82239852,3111.9,3111.8,1.67754]
[1765667345819,2.53139852,3111.9,3111.8,1.67754]
[1765667346519,1.82239852,3111.9,3111.8,1.67754]
[1765667347219,1.06412214,3112.1,3112.0,1.9744]
[1765667347412,0.00482362,3112.1,3112.0,3.19432852]
[1765667352017,0.00482362,3112.1,3112.0,2.13503]
[1765667352215,2.53622214,3112.1,3112.0,2.13503]
[1765667352410,1.82722214,3112.1,3112.0,2.13503]
[1765667356022,1.47692362,3112.1,3112.0,0.92673]
[1765667356220,0.76792362,3112.1,3112.0,2.13503]
[1765667356621,1.47692362,3112.1,3112.0,2.13503]
[1765667356915,0.76792362,3112.1,3112.0,2.13503]
[1765667359828,1.47692362,3112.1,3112.0,2.13503]
[1765667360029,1.47692362,3112.1,3112.0,0.16063]
[1765667360530,1.789,3112.0,3111.9,3.2078]
[1765667363528,1.4721,3112.0,3111.9,4.7077]
[1765667363835,1.4721,3112.0,3111.9,3.9453]
[1765667364033,2.53211236,3112.0,3111.9,3.9453]
[1765667364832,2.53211236,3112.0,3111.9,0.7375]
[1765667367228,1.4667,3111.6,3111.5,3.21578258]
[1765667367431,2.52671236,3111.6,3111.5,3.21578258]
[1765667367637,2.52671236,3111.6,3111.5,3.98498258]
[1765667368839,2.52671236,3111.6,3111.5,3.21578258]
[1765667369940,2.52671236,3111.6,3111.5,3.98498258]
[1765667370237,1.4667,3111.6,3111.5,3.98498258]
[1765667370437,1.06001236,3111.7,3111.6,1.5157]
[1765667370742,2.52671236,3111.7,3111.6,1.5157]
[1765667371138,1.81921236,3111.7,3111.6,1.5157]
[1765667371334,2.52671236,3111.7,3111.6,1.5157]
[1765667372445,1.4667,3111.7,3111.6,1.5157]
[1765667373145,1.4667,3111.7,3111.6,0.7692]
[1765667374131,1.4667,3111.6,3111.5,3.21578258]
[1765667375441,1.4667,3111.6,3111.5,3.98498258]
[1765667375743,1.4667,3111.6,3111.5,3.21578258]
[1765667377538,1.4667,3111.6,3111.5,3.98498258]
[1765667377736,1.4667,3111.6,3111.5,5.15378258]
[1765667378344,1.4667,3111.6,3111.5,4.40728258]
[1765667381547,1.4667,3111.6,3111.5,5.15378258]
[1765667382354,2.52671236,3111.6,3111.5,5.15378258]
[1765667383954,2.52671236,3111.6,3111.5,1.94598258]
[1765667384347,2.52671236,3111.6,3111.5,5.15378258]
[1765667386957,2.52671236,3111.6,3111.5,1.94598258]
[1765667387156,2.52671236,3111.6,3111.5,5.15378258]
[1765667389355,2.52671236,3111.6,3111.5,0.77718258]
[1765667389553,3.58672472,3111.6,3111.5,0.00798258]
[1765667389754,2.52671236,3111.6,3111.5,0.00798258]
[1765667391066,2.52671236,3111.6,3111.5,0.77718258]
[1765667392558,2.52671236,3111.6,3111.5,0.00798258]
[1765667394454,1.4667,3111.2,3111.1,3.977]
[1765667394652,2.52671236,3111.2,3111.1,3.977]
[1765667394848,2.52671236,3111.2,3111.1,4.7235]
[1765667395559,2.53035678,3111.2,3111.1,4.72662218]
[1765667395858,2.53035678,3111.2,3111.1,3.98012218]
[1765667396053,2.53102006,3111.2,3111.1,3.98012218]
[1765667396657,2.53102006,3111.2,3111.1,3.21092218]
[1765667397462,2.53102006,3111.2,3111.1,0.00312218]
[1765667400461,2.53102006,3111.2,3111.1,0.75562218]
[1765667401154,1.47034442,3111.2,3111.1,1.47392218]
[1765667401357,1.06432006,3111.2,3111.1,1.47392218]
[1765667401556,1.83612006,3111.2,3111.1,1.47392218]
[1765667401752,0.00364442,3111.2,3111.1,1.47392218]
[1765667408170,4.442e-05,3111.2,3111.1,4.68172218]
[1765667409173,4.442e-05,3111.2,3111.1,4.84240218]
[1765667413571,4.442e-05,3111.2,3111.1,1.63460218]
[1765667413775,4.442e-05,3111.2,3111.1,4.84240218]
[1765667432579,1.80631965,3111.2,3111.1,4.84240218]
[1765667432780,1.06031965,3111.2,3111.1,4.84240218]
[1765667434779,4.442e-05,3111.2,3111.1,3.37160218]
[1765667437080,4.442e-05,3111.2,3111.1,0.16380218]
[1765667439477,4.442e-05,3111.2,3111.1,1.22407741]
[1765667441783,4.442e-05,3111.2,3111.1,4.43187741]
[1765667446790,4.442e-05,3111.2,3111.1,3.37160218]
[1765667451989,4.442e-05,3111.2,3111.1,0.16380218]
[1765667452195,4.442e-05,3111.2,3111.1,3.37160218]
[1765667452693,4.442e-05,3111.2,3111.1,0.16380218]
[1765667452893,4.442e-05,3111.2,3111.1,3.37160218]
[1765667453287,4.442e-05,3111.2,3111.1,0.16380218]
[1765667453487,4.442e-05,3111.2,3111.1,3.37160218]
[1765667455793,4.442e-05,3111.2,3111.1,0.16380218]
[1765667456093,4.442e-05,3111.2,3111.1,3.37160218]
[1765667466518,4.442e-05,3111.2,3111.1,0.16380218]
[1765667466811,4.442e-05,3111.2,3111.1,3.37160218]
[1765667473819,3.5153,3112.0,3111.9,1.5275]
[1765667474031,2.086,3112.0,3111.9,1.68814]
[1765667474318,0.00482362,3112.1,3112.0,2.11683]
[1765667474514,1.43412362,3112.1,3112.0,2.11683]
[1765667474709,1.43720319,3112.1,3112.0,0.16063]
[1765667475112,1.43720319,3112.1,3112.0,0.91963]
[1765667475521,1.43720319,3112.1,3112.0,2.11683]
[1765667478215,1.43720319,3112.1,3112.0,1.34833]
[1765667478420,1.43720319,3112.1,3112.0,2.11683]
[1765667478624,1.43720319,3112.1,3112.0,1.34833]
[1765667479524,1.43720319,3112.1,3112.0,0.16063]